{"text_format":"1","workbook":"xlsx","n_sheets":23,"sheets":["NAVODILA","SPLOŠNO","DOSTOPNOST","UP_VSEBINE 1","UP_VSEBINE 2","UP_VSEBINE 3","UP_VSEBINE 4","UP VSEBINE 5","UP VSEBINE 6","UP_VSEBINE 7","UP_VSEBINE 8","UP_VSEBINE 9","UP_VSEBINE 10","UPORABNIKI","AKTIVNOSTI","KADRI","FINANCE","DRUGO","EVALVACIJA","KAPACITETE 1","KAPACITETE 2","podatki skrij","matrika_3"],"not_rendered":{"charts":0,"images":0,"macros":1,"external_links":0,"defined_names":13,"comments":4,"pivot_tables":0},"unopened":[],"bounds":{"document_bytes":16777216,"sheet_cells":100000,"rows_first":2000,"rows_last":500,"rows_between":2000,"halvings":0,"cell_chars":16384,"cell_head_chars":4096},"cells_cut":0,"cells_raw":0,"read":"whole","date_system":"1900"}

{"sheet":"NAVODILA","index":0,"n_rows":56,"n_cols":11,"rows_kept":56,"cut":false,"hidden":false,"merged":[[0,0,0,8],[2,1,2,7],[4,1,4,7],[20,1,20,7],[5,1,5,5]]}
["NAVODILA ZA IZPOLNJEVANJE"]
[]
[null,"Spoštovani, \npred vami je posodobljen obrazec za poročanje - Končno poročilo o izvajanju socialnovarstvenega programa v obdobju od 1. 1. 2024 do 31. 12. 2024.\n\nObrazec vsebuje več listov, in sicer se odprejo odvisno od vrste programa:\n- splošno, dostopnost, uporabniki glede na vsebine, uporabniki, aktivnosti, kadri, finance, drugo, evalvacija (opcijsko), kapacitete (opcijsko).\n\nPOMEMBNO: \n- Da obrazec deluje nemoteno, ga morate najprej shraniti na disk, šele potem odpreti (ne odpirajte ga direktno iz e-maila oz. spleta).\n- Pri izpolnjevanju vas prosimo, da odgovarjate v za to namenjene celice (sive barve). Celice, označene z zeleno barvo so avtomatski seštevki oz. preverjanje, teh celic ne spreminjajte; celice, označene z rumeno barvo pa določajo izpolnitev kot izbirni seznam (kliknite na puščico v celici).\n\nV primeru tehničnih težav se lahko obrnete na IRSSV, in sicer na e-pošto: svp.irssv@siol.net. Če vam e-pošto zavrača, pri pošiljanju naredite stisnjeno datoteko zbirnika (npr.: .zip, .rar ipd)."]
[]
[null,"ZAČETEK: Prosimo, izberite skupino in podskupino vašega programa, za tem označite, ali je vaš program vključen v sistem EVAPRO. \nKo boste označili vse korake, se vam bodo odprli zavihki za izpolnjevanje."]
[null,"Opomba: Če niste prepričani, v katero podskupino spada program, pustite prazno oz. preverite v končnem poročilu na",null,null,null,null,"POVEZAVI"]
[]
[]
[]
[null,null,"KORAK 1",null,"KORAK 2",null,"KORAK 3"]
[null,null,"Prosimo, najprej izberite vašo skupino programov:",null,"Prosimo, izberite vašo podskupino programov:",null,"Ali je vaš program verificiran in/ali vključen v sistem EVAPRO?"]
[]
[]
[]
[]
[]
[]
[]
[]
[]
[null,"KONEC: Ko boste z izpolnjevanjem končali, kliknite na spodnji gumb \"NATISNI V PDF\" in se bo obrazec avtomatsko shranil v PDF datoteko."]
[]
[]
[]
[]
[]
[]
[]
[]
[]
[]
[]
[]
[]
[]
[]
[]
[]
[]
[]
[]
[]
[]
[]
[]
[]
[]
[]
[]
[null,"NASILJE","ZASVOJENI","DUŠEVNO_ZDRAVJE","BREZDOMCI","OTROCI_IN_MLADOSTNIKI","STAREJŠI","INVALIDI","ROMI","DRUGI_PROGRAMI","PROGRAMI_SPECIALISTIČNE_PODPORE_ŽRTVAM_KAZNIVIH_DEJANJ"]
[null,"MATERINSKI DOMOVI","PREPOVEDANE DROGE – VISOKI PRAG","STANOVANJSKE SKUPINE","NAMESTITVENI PROGRAMI","DNEVNI CENTRI ZA OTROKE IN MLADOSTNIKE S PREVENTIVNIM DELOM IN SVETOVANJEM","PROGRAMI ZA STAREJŠE","PROGRAMI ZA SPODBUJANJE SOCIALNE VKLJUČENOSTI IN NEODVISNEGA ŽIVLJENJA INVALIDOV","PROGRAMI ZA ROME","DRUGI PROGRAMI","PROGRAMI SPECIALISTIČNE PODPORE ŽRTVAM KAZNIVIH DEJANJ"]
[null,"VARNE HIŠE, ZATOČIŠČA IN KRIZNI CENTRI","PREPOVEDANE DROGE - NIZKI PRAG","DNEVNI CENTRI","DNEVNI PROGRAMI","PREVENTIVNI PROGRAMI","PROGRAMI ZA OSEBE Z DEMENCO IN NJIHOVE SVOJCE"]
[null,"SVETOVALNICE","PREPOVEDANE DROGE – PREVENTIVNI PROGRAMI","INFORMACIJSKE PISARNE IN SVETOVALNICE","DELOŽACIJE","PROGRAMI TELEFONSKEGA SVETOVANJA"]
[null,"PROGRAMI PREVENTIVE","ALKOHOLIZEM","PROGRAMI TELEFONSKEGA SVETOVANJA"]
[null,"PROGRAMI TELEFONSKEGA SVETOVANJA","MOTNJE HRANJENJA","ZAGOVORNIŠTVO"]
[null,null,"PREPREČEVANJE PREKOMERNE RABE IKT"]

{"sheet":"SPLOŠNO","index":1,"n_rows":23,"n_cols":3,"rows_kept":23,"cut":false,"hidden":true,"merged":[[22,1,22,2],[1,1,3,2],[0,1,0,3]]}
[null,"Končno poročilo o izvajanju socialnovarstvenega programa \nv obdobju od 1. 1. 2024 do 31. 12. 2024"]
[null,"PROSIMO, DA POROČILO IZPOLNJUJETE KRATKO IN JEDRNATO, SE DRŽITE NAVODIL IN NE SPREMINJAJTE STRUKTURE OBRAZCA.\n\nNa MDDSZ posredujte: \n(i) obrazec končnega poročila v Excelu po elektronski pošti na gp.mddsz@gov.si . V zadevi elektronske pošte se sklicujte na številko pogodbe; \n(ii) izpolnjen in podpisan obrazec (pdf) skupaj s prilogami po redni pošti na naslov: MDDSZ, Štukljeva cesta  44, 1000 Ljubljana\n\nNa IRSSV posredujte le izpolnjen obrazec končnega poročila v Excelu po e-pošti: svp.irssv@siol.net\n\nPOMEMBNO: Vse popravke, ki jih naknadno usklajujete v obrazcu, pošiljajte tako na MDDSZ kot na IRSSV, ne glede na to, s katerim akterjem ste uskladili vsebino."]
[]
[]
[]
[null,"Skupina, podskupina, evalvacija:",{"$f":"Skupina&\"; \"&NAVODILA!E16&\"; \"&NAVODILA!G16","v":"; ; "}]
[null,"Vrsta programa (izberite iz seznama):"]
[null,"Obdobje financiranja (izberite iz seznama):"]
[null,"Naziv izvajalca oz. organizacije:"]
[null,"Naziv programa: "]
[null,"Številka sklenjene pogodbe: "]
[null,"Naslov izvajalca oz. organizacije:"]
[null,"Telefon izvajalca, programa:                                                 "]
[null,"Elektronski naslov:"]
[null,"Spletna stran:"]
[null,"Tip organizacije, v kateri se izvaja program (izberite iz seznama):"]
[null,"Navedite skrbnika pogodbe na MDDSZ (naveden v pogodbi):"]
[]
[null,"Kraj in datum:"]
[]
[null,"Strokovni delavec/vodja programa + odgovorna oseba\n(navedite osebe in podpišite):"]
[]
[null,"Rok za predložitev končnega poročila:  17. 2. 2025"]

{"sheet":"DOSTOPNOST","index":2,"n_rows":33,"n_cols":8,"rows_kept":33,"cut":false,"hidden":true,"merged":[[0,0,0,8],[2,1,2,8],[32,1,32,2],[3,5,3,6],[3,4,4,4],[3,7,4,7],[3,3,4,3],[3,2,4,2],[3,1,4,1]]}
["DOSTOPNOST PROGRAMOV - za obdobje od 1. 1. 2024 do 31. 12. 2024"]
[]
[1,"Prosimo navedite, v katerih občinah se izvaja program in vpišite število enot oz. lokacij programa v tej občini. Programi, ki imate nastanitve, vpišite še število kapacitet oz. postelj po občinah.\nOpomba: Programi telefonskega svetovanja/Programi za starejše, ki se izvajajo po celotni Sloveniji - označite na koncu 'DA' in pri občinah izvajanja vpišite občino sedeža organizacije oz. programa; \nProgrami, kjer se izvaja storitev v odprtih stanovanjskih skupinah oz. na domu uporabnika: teh lokacij ne beležite med občine, samo navedite jih v opombo."]
[null,null,"Občina \n(izberite iz seznama):","Vpišite skupno število enot oz. lokacij v občini","Prosimo, navedite, kaj vse ste zajeli \n(npr. 3 lokacije terenskega dela in 1 enota DC; 1 lokacija sedež in 1 enota SS)","ŠTEVILO PRENOČITVENIH KAPACITET \nNA DAN 31. 12., PO OBČINAH",null,"OPOMBA "]
[null,null,null,null,null,"Število formalno priznanih prenočitvenih kapacitet - postelj","Število rezervnih prenočitvenih kapacitet - postelj"]
[null,"OBČINA IZVAJANJA 1"]
[null,"OBČINA IZVAJANJA 2"]
[null,"OBČINA IZVAJANJA 3"]
[null,"OBČINA IZVAJANJA 4"]
[null,"OBČINA IZVAJANJA 5"]
[null,"OBČINA IZVAJANJA 6"]
[null,"OBČINA IZVAJANJA 7"]
[null,"OBČINA IZVAJANJA 8"]
[null,"OBČINA IZVAJANJA 9"]
[null,"OBČINA IZVAJANJA 10"]
[null,"OBČINA IZVAJANJA 11"]
[null,"OBČINA IZVAJANJA 12"]
[null,"OBČINA IZVAJANJA 13"]
[null,"OBČINA IZVAJANJA 14"]
[null,"OBČINA IZVAJANJA 15"]
[null,"OBČINA IZVAJANJA 16"]
[null,"OBČINA IZVAJANJA 17"]
[null,"OBČINA IZVAJANJA 18"]
[null,"OBČINA IZVAJANJA 19"]
[null,"OBČINA IZVAJANJA 20"]
[null,"OBČINA IZVAJANJA 21"]
[null,"OBČINA IZVAJANJA 22"]
[null,"OBČINA IZVAJANJA 23"]
[null,"OBČINA IZVAJANJA 24"]
[null,"OBČINA IZVAJANJA 25"]
[null,"Skupaj",{"$f":"COUNTA(C6:C30)","v":0},{"$f":"SUM(D6:D30)","v":0},null,{"$f":"SUM(F6:F30)","v":0},{"$f":"SUM(G6:G30)","v":0}]
[]
[null,"Program se izvaja po celotni Sloveniji \n(izberite iz seznama):"]

{"sheet":"UP_VSEBINE 1","index":3,"n_rows":16,"n_cols":8,"rows_kept":16,"cut":false,"hidden":true,"merged":[[0,0,0,8],[1,1,1,7],[14,1,14,7]]}
["UPORABNIKI GLEDE NA VSEBINE - za obdobje od 1. 1. 2024 do 31. 12. 2024"]
[null,"Prosimo, navedite število kontinuiranih, občasnih uporabnikov, kot ste prijavili v razpisu in mesečno povprečje dejanskih uporabnikov v letu 2024, kot izhaja iz poročanja za zahtevke MDDSZ. V primeru odstopanj pojasnite, zakaj prihaja do tega. En uporabnik je v teh tabelah lahko štet samo enkrat."]
[1,"Programi za preprečevanje nasilja, programi za pomoč žrtvam nasilja in programi za delo s povzročitelji nasilja:","PRIJAVA - Število kontinuiranih uporabnikov","PRIJAVA - Število občasnih uporabnikov","DEJANSKO - Število kontinuiranih uporabnikov","DEJANSKO - Število občasnih uporabnikov","POJASNILO - v primeru več kot 10 % odstopanja števila uporabnikov od prijave na razpis, pojasnite razloge za to","SKUPAJ"]
[null,"Programi kriznih centrov",null,null,null,null,null,{"$f":"C4+D4","v":0}]
[null,"Programi materinskih domov ali materinskih domov s prehodnimi bivalnimi enotami",null,null,null,null,null,0]
[null,"Programi varnih hiš in zatočišč ",null,null,null,null,null,0]
[null,"Programi, namenjeni obravnavi žrtev nasilja (informacijski in svetovalni programi)",null,null,null,null,null,0]
[null,"Programi, namenjeni celostni obravnavi žrtev nasilja (informacijski in svetovalni programi ter 24/7 telefonska linija) ",null,null,null,null,null,0]
[null,"Programi, namenjeni obravnavi žrtev spolnega nasilja",null,null,null,null,null,0]
[null,"Programi, namenjeni povzročiteljem nasilja",null,null,null,null,null,0]
[null,"Programi, namenjeni otrokom in mladostnikom, povzročiteljem nasilja, vključno z medvrstniškim nasiljem",null,null,null,null,null,0]
[null,"Programi, namenjeni povzročiteljem nasilja v romski skupnosti",null,null,null,null,null,0]
[null,"Preventivni programi na področju preprečevanja nasilja ",null,null,null,null,null,0]
[null,"Programi, namenjeni celostni obravnavi žrtev nasilja nad invalidi (ki vsebujejo informacijski in svetovalni del programa kot tudi terensko delo in namestitvene kapacitete)",null,null,null,null,null,0]
[null,"po potrebi vstavite vrstice in vpišite vsebine, ki niso navedene zgoraj (starejši razpisi od leta 2024)"]
[null,null,{"$f":"SUM(C4:C14)","v":0},{"$f":"SUM(D4:D14)","v":0},{"$f":"SUM(E4:E14)","v":0},{"$f":"SUM(F4:F14)","v":0}]

{"sheet":"UP_VSEBINE 2","index":4,"n_rows":26,"n_cols":8,"rows_kept":26,"cut":false,"hidden":true,"merged":[[0,0,0,8],[24,1,24,7],[1,1,1,7]]}
["UPORABNIKI GLEDE NA VSEBINE - za obdobje od 1. 1. 2024 do 31. 12. 2024"]
[null,"Prosimo, navedite število kontinuiranih, občasnih uporabnikov, kot ste prijavili v razpisu in mesečno povprečje dejanskih uporabnikov v letu 2024, kot izhaja iz poročanja za zahtevke MDDSZ. V primeru odstopanj pojasnite, zakaj prihaja do tega. En uporabnik je v teh tabelah lahko štet samo enkrat."]
[2,"Programi na področju preprečevanja zasvojenosti, ki so namenjeni uporabnikom prepovedanih drog, osebam, ki so se znašle v socialnih stiskah zaradi alkoholizma in osebam, ki imajo težave na področju motenj hranjenja ter drugih oblik zasvojenosti:","PRIJAVA - Število kontinuiranih uporabnikov","PRIJAVA - Število občasnih uporabnikov","DEJANSKO - Število kontinuiranih uporabnikov","DEJANSKO - Število občasnih uporabnikov","POJASNILO - v primeru več kot 10 % odstopanja števila uporabnikov od prijave na razpis, pojasnite razloge za to","SKUPAJ"]
[null,"2.1 Visokopražni programi:"]
[null,"(Visokopražni) terapevtski programi (komune), namenjene spreminjanju in utrjevanju življenja brez drog, ki omogočajo nastanitev uporabnikov",null,null,null,null,null,{"$f":"C5+D5","v":0}]
[null,"Stanovanjske skupine, namenjene reintegraciji, pri čemer uporabnik lahko živi v stanovanjski skupini ali v samostojni enoti",null,null,null,null,null,0]
[null,"Sprejemni centri visokopražnih programov in programov brez nastanitve za različne oblike zasvojenosti pri že ogroženih osebah, ki poleg informiranja in svetovanja, motivirajo in spodbujajo uporabnike za abstinenco in spremembo načina življenja",null,null,null,null,null,0]
[null,"Programi zmanjševanja škode na področju drog med mladimi in mlajšimi odraslimi ",null,null,null,null,null,0]
[null,"Progami, namenjeni preprečevanju razvoja različnih oblik zasvojenosti pri ogroženih otrocih in mladostnikih",null,null,null,null,null,0]
[null,"Programi, namenjeni spreminjanju in utrjevanju življenja brez drog – terapevtske skupnosti (24-urna obravnava)",null,null,null,null,null,0]
[null,"Terapevtski (visokopražni) programi brez nastanitve in dnevni centri",null,null,null,null,null,0]
[null,"Programi za reintegracijo uporabnikov v družbo",null,null,null,null,null,0]
[null,"2.2 Programi zmanjševanja škode (nizkopražni programi za uživalce prepovedanih drog, kamor sodijo: dnevni centri, svetovalnice, terensko delo, sprejemališča in zavetišča za brezdomne uživalce drog ipd.):"]
[null,"Nizkopražni programi, namenjeni uživalcem drog, mrežo centrov za svetovanje s terenskim delom za pomoč zasvojenim s prepovedanimi drogami, potrebnih vsakodnevne obravnave, ki lahko vključujejo psihosocialno pomoč (dnevni in drop-in centri ali terensko delo",null,null,null,null,null,0]
[null,"Programi zavetišč s prenočitvenimi kapacitetami in z nočnim dežurstvom za brezdomne uživalce nedovoljenih drog, v katerih gre za najmanj 16 urno obravnavo uporabnikov",null,null,null,null,null,0]
[null,"Nizkopražni programi za uživalke drog s prenočitvenimi kapacitetami in svetovanje s terenskim delom za pomoč zasvojenim s prepovedanimi drogami potrebnih vsakodnevne obravnave",null,null,null,null,null,0]
[null,"Nizkopražni programi, namenjeni mladim uživalcem drog "]
[null,"2.3 Programi povezani z alkoholizmom:"]
[null,"Programi, namenjeni osebam, ki so se znašle v socialnih stiskah zaradi alkoholizma (informacijski in svetovalni programi, terapevtski programi, dnevni centri), ",null,null,null,null,null,0]
[null,"Program, v katerih poteka delo v obliki rednih tedenskih srečanj skupin, v katerih je od 8 do 12 uporabnikov in pri katerih gre za spreminjanje ter utrjevanje novih vedenjskih in odnosnih vzorcev",null,null,null,null,null,0]
[null,"Programi zmanjševanja škode zaradi uživanja alkohola za mlade in svetovanje s terenskim delom ter neposrednimi spletnimi stiki",null,null,null,null,null,0]
[null,"2.4 Programi na področju motenj hranjenja ali drugih oblik zasvojenosti (zasvojenost z igrami na srečo, zasvojenost z digitalnimi napravami, spletom in spletnimi storitvami ipd…):"]
[null,"Programi za osebe, ki imajo težave na področju motenj hranjenja (dnevni centri, pisarne za svetovanje in informiranje)",null,null,null,null,null,0]
[null,"Programi za osebe, ki imajo težave na področju drugih oblik zasvojenosti (dnevni centri, pisarne za svetovanje in informiranje ter terensko delo)",null,null,null,null,null,0]
[null,"po potrebi vstavite vrstice in vpišite vsebine, ki niso navedene zgoraj (starejši razpisi od leta 2024)"]
[null,null,{"$f":"SUM(C4:C24)","v":0},{"$f":"SUM(D4:D24)","v":0},0,0]

{"sheet":"UP_VSEBINE 3","index":5,"n_rows":14,"n_cols":8,"rows_kept":14,"cut":false,"hidden":true,"merged":[[0,0,0,8],[12,1,12,7],[1,1,1,7]]}
["UPORABNIKI GLEDE NA VSEBINE - za obdobje od 1. 1. 2024 do 31. 12. 2024"]
[null,"Prosimo, navedite število kontinuiranih, občasnih uporabnikov, kot ste prijavili v razpisu in mesečno povprečje dejanskih uporabnikov v letu 2024, kot izhaja iz poročanja za zahtevke MDDSZ. V primeru odstopanj pojasnite, zakaj prihaja do tega. En uporabnik je v teh tabelah lahko štet samo enkrat."]
[3,"Programi na področju duševnega zdravja: ","PRIJAVA - Število kontinuiranih uporabnikov","PRIJAVA - Število občasnih uporabnikov","DEJANSKO - Število kontinuiranih uporabnikov","DEJANSKO - Število občasnih uporabnikov","POJASNILO - v primeru več kot 10 % odstopanja števila uporabnikov od prijave na razpis, pojasnite razloge za to","SKUPAJ"]
[null,"Stanovanjske skupine s celovito celodnevno podporo (12 ur)",null,null,null,null,null,{"$f":"C4+D4","v":0}]
[null,"Prehodne stanovanjske skupine ",null,null,null,null,null,0]
[null,"Prehodne stanovanjske skupine za mlade (med 18 in 30 let)",null,null,null,null,null,0]
[null,"Odprte stanovanjske skupine skupaj s podporo v domačem okolju, pri čemer uporabnik lahko živi v stanovanjski skupini ali v samostojni enoti",null,null,null,null,null,0]
[null,"Dnevni centri ",null,null,null,null,null,0]
[null,"Dnevni centri, ki vključujejo skupine za samopomoč ",null,null,null,null,null,0]
[null,"Programi psihosocialnega svetovanja, informiranja in terenskega dela (PIS)",null,null,null,null,null,0]
[null,"Programi zagovorništva ",null,null,null,null,null,0]
[null,"Programi telefonskega svetovanja ",null,null,null,null,null,0]
[null,"po potrebi vstavite vrstice in vpišite vsebine, ki niso navedene zgoraj (starejši razpisi od leta 2024)"]
[null,null,{"$f":"SUM(C4:C12)","v":0},{"$f":"SUM(D4:D12)","v":0},0,0]

{"sheet":"UP_VSEBINE 4","index":6,"n_rows":9,"n_cols":8,"rows_kept":9,"cut":false,"hidden":true,"merged":[[0,0,0,8],[7,1,7,7],[1,1,1,7]]}
["UPORABNIKI GLEDE NA VSEBINE - za obdobje od 1. 1. 2024 do 31. 12. 2024"]
[null,"Prosimo, navedite število kontinuiranih, občasnih uporabnikov, kot ste prijavili v razpisu in mesečno povprečje dejanskih uporabnikov v letu 2024, kot izhaja iz poročanja za zahtevke MDDSZ. V primeru odstopanj pojasnite, zakaj prihaja do tega. En uporabnik je v teh tabelah lahko štet samo enkrat."]
[4,"Programi za brezdomce: ","PRIJAVA - Število kontinuiranih uporabnikov","PRIJAVA - Število občasnih uporabnikov","DEJANSKO - Število kontinuiranih uporabnikov","DEJANSKO - Število občasnih uporabnikov","POJASNILO - v primeru več kot 10 % odstopanja števila uporabnikov od prijave na razpis, pojasnite razloge za to","SKUPAJ"]
[null,"Zavetišča s prenočitvenimi kapacitetami in z nočnim dežurstvom",null,null,null,null,null,{"$f":"C4+D4","v":0}]
[null,"Zavetišča s prenočitvenimi kapacitetami odprtega tipa ",null,null,null,null,null,{"$f":"C5+D5","v":0}]
[null,"Sprejemališča ali/in dnevni centri z dnevno obravnavo, terenskim delom in dodatnimi aktivnostmi",null,null,null,null,null,{"$f":"C6+D6","v":0}]
[null,"Programi nastanitvene stanovanjske podpore ",null,null,null,null,null,{"$f":"C7+D7","v":0}]
[null,"po potrebi vstavite vrstice in vpišite vsebine, ki niso navedene zgoraj (starejši razpisi od leta 2024)"]
[null,null,{"$f":"SUM(C4:C7)","v":0},{"$f":"SUM(D4:D7)","v":0},0,0]

{"sheet":"UP VSEBINE 5","index":7,"n_rows":7,"n_cols":8,"rows_kept":7,"cut":false,"hidden":true,"merged":[[0,0,0,8],[5,1,5,7],[1,1,1,7]]}
["UPORABNIKI GLEDE NA VSEBINE - za obdobje od 1. 1. 2024 do 31. 12. 2024"]
[null,"Prosimo, navedite število kontinuiranih, občasnih uporabnikov, kot ste prijavili v razpisu in mesečno povprečje dejanskih uporabnikov v letu 2024, kot izhaja iz poročanja za zahtevke MDDSZ. V primeru odstopanj pojasnite, zakaj prihaja do tega. En uporabnik je v teh tabelah lahko štet samo enkrat."]
[5,"Programi za otroke in mladostnike, prikrajšane za primerno družinsko življenje ter programi, namenjeni otrokom in mladostnikom s težavami v odraščanju:","PRIJAVA - Število kontinuiranih uporabnikov","PRIJAVA - Število občasnih uporabnikov","DEJANSKO - Število kontinuiranih uporabnikov","DEJANSKO - Število občasnih uporabnikov","POJASNILO - v primeru več kot 10 % odstopanja števila uporabnikov od prijave na razpis, pojasnite razloge za to","SKUPAJ"]
[null,"Dnevni centri za otroke in mladostnike s terenskim delom",null,null,null,null,null,{"$f":"C4+D4","v":0}]
[null,"Dnevni centri za otroke in mladostnike s terenskim delom, ki vključujejo tudi svetovanje",null,null,null,null,null,{"$f":"C5+D5","v":0}]
[null,"po potrebi vstavite vrstice in vpišite vsebine, ki niso navedene zgoraj (starejši razpisi od leta 2024)"]
[null,null,{"$f":"SUM(C4:C5)","v":0},{"$f":"SUM(D4:D5)","v":0},0,0]

{"sheet":"UP VSEBINE 6","index":8,"n_rows":9,"n_cols":8,"rows_kept":9,"cut":false,"hidden":true,"merged":[[0,0,0,8],[7,1,7,7],[1,1,1,7]]}
["UPORABNIKI GLEDE NA VSEBINE - za obdobje od 1. 1. 2024 do 31. 12. 2024"]
[null,"Prosimo, navedite število kontinuiranih, občasnih uporabnikov, kot ste prijavili v razpisu in mesečno povprečje dejanskih uporabnikov v letu 2024, kot izhaja iz poročanja za zahtevke MDDSZ. V primeru odstopanj pojasnite, zakaj prihaja do tega. En uporabnik je v teh tabelah lahko štet samo enkrat."]
[6,"Programi za starejše, ki jim grozi socialna izključenost ali potrebujejo podporo in pomoč v vsakodnevnem življenju:","PRIJAVA - Število kontinuiranih uporabnikov","PRIJAVA - Število občasnih uporabnikov","DEJANSKO - Število kontinuiranih uporabnikov","DEJANSKO - Število občasnih uporabnikov","POJASNILO - v primeru več kot 10 % odstopanja števila uporabnikov od prijave na razpis, pojasnite razloge za to","SKUPAJ"]
[null,"Programi svetovanja s terenskim delom, namenjene osebam z demenco in njihovim svojcem",null,null,null,null,null,{"$f":"C4+D4","v":0}]
[null,"Programi pomoči, namenjene osebam z demenco in njihovim svojcem",null,null,null,null,null,{"$f":"C5+D5","v":0}]
[null,"Programi dnevnih centrov za starejše",null,null,null,null,null,{"$f":"C6+D6","v":0}]
[null,"Programi prostovoljskega dela starejših ",null,null,null,null,null,{"$f":"C7+D7","v":0}]
[null,"po potrebi vstavite vrstice in vpišite vsebine, ki niso navedene zgoraj (starejši razpisi od leta 2024)"]
[null,null,{"$f":"SUM(C4:C7)","v":0},{"$f":"SUM(D4:D7)","v":0},0,0]

{"sheet":"UP_VSEBINE 7","index":9,"n_rows":9,"n_cols":8,"rows_kept":9,"cut":false,"hidden":true,"merged":[[0,0,0,8],[7,1,7,7],[1,1,1,7]]}
["UPORABNIKI GLEDE NA VSEBINE - za obdobje od 1. 1. 2024 do 31. 12. 2024"]
[null,"Prosimo, navedite število kontinuiranih, občasnih uporabnikov, kot ste prijavili v razpisu in mesečno povprečje dejanskih uporabnikov v letu 2024, kot izhaja iz poročanja za zahtevke MDDSZ. V primeru odstopanj pojasnite, zakaj prihaja do tega. En uporabnik je v teh tabelah lahko štet samo enkrat."]
[7,"Programi za podporno bivanje invalidov in mreža drugih programov za organizacijo in spodbujanje samostojnega življenja invalidov: ","PRIJAVA - Število kontinuiranih uporabnikov","PRIJAVA - Število občasnih uporabnikov","DEJANSKO - Število kontinuiranih uporabnikov","DEJANSKO - Število občasnih uporabnikov","POJASNILO - v primeru več kot 10 % odstopanja števila uporabnikov od prijave na razpis, pojasnite razloge za to","SKUPAJ"]
[null,"Prehodne bivalne skupnosti za invalide (letne pogodbe z možnostjo podaljšanja)",null,null,null,null,null,{"$f":"C4+D4","v":0}]
[null,"Programi, namenjeni ohranjanju socialnih veščin",null,null,null,null,null,{"$f":"C5+D5","v":0}]
[null,"Informacijski in svetovalni programi, programi koordinacije, podpore in izvajanja pomoči in samopomoči za invalide",null,null,null,null,null,{"$f":"C6+D6","v":0}]
[null,"Svetovalna pisarna s terenskim delom  in namestitvijo ",null,null,null,null,null,{"$f":"C7+D7","v":0}]
[null,"po potrebi vstavite vrstice in vpišite vsebine, ki niso navedene zgoraj (starejši razpisi od leta 2024)"]
[null,null,{"$f":"SUM(C4:C7)","v":0},{"$f":"SUM(D4:D7)","v":0},0,0]

{"sheet":"UP_VSEBINE 8","index":10,"n_rows":7,"n_cols":8,"rows_kept":7,"cut":false,"hidden":true,"merged":[[0,0,0,8],[5,1,5,7],[1,1,1,7]]}
["UPORABNIKI GLEDE NA VSEBINE - za obdobje od 1. 1. 2024 do 31. 12. 2024"]
[null,"Prosimo, navedite število kontinuiranih, občasnih uporabnikov, kot ste prijavili v razpisu in mesečno povprečje dejanskih uporabnikov v letu 2024, kot izhaja iz poročanja za zahtevke MDDSZ. V primeru odstopanj pojasnite, zakaj prihaja do tega. En uporabnik je v teh tabelah lahko štet samo enkrat."]
[8,"Programi socialnega vključevanja Romov: ","PRIJAVA - Število kontinuiranih uporabnikov","PRIJAVA - Število občasnih uporabnikov","DEJANSKO - Število kontinuiranih uporabnikov","DEJANSKO - Število občasnih uporabnikov","POJASNILO - v primeru več kot 10 % odstopanja števila uporabnikov od prijave na razpis, pojasnite razloge za to","SKUPAJ"]
[null,"Dnevni center za otroke in mladostnike",null,null,null,null,null,{"$f":"C4+D4","v":0}]
[null,"Ostali programi (informacijski in svetovalni programi, krepitev socialnih kompetenc ter delo na terenu)",null,null,null,null,null,{"$f":"C5+D5","v":0}]
[null,"po potrebi vstavite vrstice in vpišite vsebine, ki niso navedene zgoraj (starejši razpisi od leta 2024)"]
[null,null,{"$f":"SUM(C4:C5)","v":0},{"$f":"SUM(D4:D5)","v":0},0,0]

{"sheet":"UP_VSEBINE 9","index":11,"n_rows":5,"n_cols":8,"rows_kept":5,"cut":false,"hidden":true,"merged":[[0,0,0,8],[4,1,4,7],[1,1,1,7]]}
["UPORABNIKI GLEDE NA VSEBINE - za obdobje od 1. 1. 2024 do 31. 12. 2024"]
[null,"Prosimo, navedite število kontinuiranih, občasnih uporabnikov, kot ste prijavili v razpisu in mesečno povprečje dejanskih uporabnikov v letu 2024, kot izhaja iz poročanja za zahtevke MDDSZ. V primeru odstopanj pojasnite, zakaj prihaja do tega. En uporabnik je v teh tabelah lahko štet samo enkrat."]
[9,"Programi specialistične podpore žrtvam kaznivih dejanj (če ni zagotovljena s preostalimi socialnovarstvenimi programi):","PRIJAVA - Število kontinuiranih uporabnikov","PRIJAVA - Število občasnih uporabnikov","DEJANSKO - Število kontinuiranih uporabnikov","DEJANSKO - Število občasnih uporabnikov","POJASNILO - v primeru več kot 10 % odstopanja števila uporabnikov od prijave na razpis, pojasnite razloge za to","SKUPAJ"]
[null,"Programi specialistične podpore žrtvam kaznivih dejanj (informacijski in svetovalni program ter zagovorništvo) v skladu z Direktivo 2012/29/EU, razen če je tovrstna specialistična podpora zagotovljena že v okviru drugih razpisanih področij tega javnega razpisa",null,null,null,null,null,{"$f":"C4+D4","v":0}]
[null,"po potrebi vstavite vrstice in vpišite vsebine, ki niso navedene zgoraj (starejši razpisi od leta 2024)"]

{"sheet":"UP_VSEBINE 10","index":12,"n_rows":12,"n_cols":8,"rows_kept":12,"cut":false,"hidden":true,"merged":[[0,0,0,8],[10,1,10,7],[1,1,1,7]]}
["UPORABNIKI GLEDE NA VSEBINE - za obdobje od 1. 1. 2024 do 31. 12. 2024"]
[null,"Prosimo, navedite število kontinuiranih, občasnih uporabnikov, kot ste prijavili v razpisu in mesečno povprečje dejanskih uporabnikov v letu 2024, kot izhaja iz poročanja za zahtevke MDDSZ. V primeru odstopanj pojasnite, zakaj prihaja do tega. En uporabnik je v teh tabelah lahko štet samo enkrat."]
[10,"Drugi programi, ki so namenjeni odpravljanju socialnih stisk ljudi:","PRIJAVA - Število kontinuiranih uporabnikov","PRIJAVA - Število občasnih uporabnikov","DEJANSKO - Število kontinuiranih uporabnikov","DEJANSKO - Število občasnih uporabnikov","POJASNILO - v primeru več kot 10 % odstopanja števila uporabnikov od prijave na razpis, pojasnite razloge za to","SKUPAJ"]
[null,"Svetovalno informacijski programi",null,null,null,null,null,{"$f":"C4+D4","v":0}]
[null,"Programi, namenjeni osebam v dolgovih in deložacijah",null,null,null,null,null,0]
[null,"Programi svetovanja, nudenja psihosocialne pomoči, socialnega vključevanja, opolnomočenja in zagovorništva, namenjene prosilcem za mednarodno zaščito, beguncem, ekonomskim migrantom in njihovim družinskim članom ",null,null,null,null,null,0]
[null,"Programi prostovoljstva",null,null,null,null,null,0]
[null,"Dnevni centri za osebe, ki so prosilci, ali jim je bila dodeljena mednarodna zaščita Republike Slovenije v krajih, kjer so te osebe nastanjene ",null,null,null,null,null,0]
[null,"Programi, namenjeni žalujočim odraslim, otrokom in mladostnikom",null,null,null,null,null,0]
[null,"Programi spremljanja umirajočih bolnikov in njihovih svojcev na domu",null,null,null,null,null,0]
[null,"po potrebi vstavite vrstice in vpišite vsebine, ki niso navedene zgoraj (starejši razpisi od leta 2024)"]
[null,null,{"$f":"SUM(C4:C10)","v":0},{"$f":"SUM(D4:D10)","v":0},0,0]

{"sheet":"UPORABNIKI","index":13,"n_rows":66,"n_cols":6,"rows_kept":66,"cut":false,"hidden":true,"merged":[[63,3,63,8],[53,1,53,3],[54,1,54,3],[60,1,60,8],[34,1,34,2],[37,1,40,1],[42,1,42,2],[43,1,43,2],[47,1,47,8],[48,1,48,3],[49,1,49,3],[44,1,44,8],[65,3,65,8],[50,1,50,3],[51,1,51,3],[52,1,52,3],[57,1,57,2],[57,3,57,4],[64,1,64,2],[64,3,64,8],[65,1,65,2],[61,1,61,2],[62,1,62,2],[63,1,63,2],[61,3,61,8],[62,3,62,8],[55,1,55,3],[56,1,56,3],[10,1,10,2],[11,1,11,2],[12,1,12,2],[0,0,0,9],[2,1,2,8],[3,1,3,3],[4,1,4,3],[5,1,5,3],[6,1,6,3],[9,1,9,8],[15,1,15,8],[30,1,30,8],[33,1,33,8],[35,1,36,1],[43,3,43,5]]}
["UPORABNIKI - za obdobje od 1. 1. 2024 do 31. 12. 2024"]
[]
[1,"Prosimo, navedite število uporabnikov, en uporabnik se šteje samo enkrat na leto. Številke v zelenih celicah se avtomatsko prenesejo iz prejšnjega lista."]
[null,"Skupaj število VSEH RAZLIČNIH uporabnikov (kontinuirani + občasni)\nOpomba: Vsak uporabnik se šteje samo enkrat. Število različnih uporabnikov v letu ni nujno enako seštevku kontinuiranih in občasnih uporabnikov skupaj."]
[null,"Število kontinuiranih uporabnkov",null,null,{"$f":"'UP_VSEBINE 1'!E16+'UP_VSEBINE 2'!E26+'UP_VSEBINE 3'!E14+'UP_VSEBINE 4'!E9+'UP VSEBINE 5'!E7+'UP VSEBINE 6'!E9+'UP_VSEBINE 7'!E9+'UP_VSEBINE 8'!E7+'UP_VSEBINE 9'!E4+'UP_VSEBINE 10'!E12","v":0}]
[null,"Število občasnih uporabnikov",null,null,{"$f":"'UP_VSEBINE 1'!F16+'UP_VSEBINE 2'!F26+'UP_VSEBINE 3'!F14+'UP_VSEBINE 4'!F9+'UP VSEBINE 5'!F7+'UP VSEBINE 6'!F9+'UP_VSEBINE 7'!F9+'UP_VSEBINE 8'!F7+'UP_VSEBINE 9'!F4+'UP_VSEBINE 10'!F12","v":0}]
[null,"Število uporabnikov na dan 1. 12. 2024 (izpis pridobite iz EVAPRO, če tega nimate oz. nimate točnega podatka, vpišite oceno števila uporabnikov na ta dan)"]
[]
[]
[2,"Če program obsega tudi delo v skupinah (predvsem v programih za starejše), prosimo navedite naslednje:"]
[null,"Število skupin"]
[null,"Povprečno število uporabnikov na skupino"]
[null,"Število srečanj na leto"]
[]
[]
[3,"Prosimo, navedite število vključenih uporabnikov po mesecih ter povprečno število ur aktivne* vključenosti uporabnikov v posamezne dejavnosti programa na mesec."]
[null,"Mesec","Število uporabnikov","Povprečno število ur aktivne* vključenosti enega uporabnika na mesec"]
[null,"januar "]
[null,"februar "]
[null,"marec "]
[null,"april "]
[null,"maj "]
[null,"junij "]
[null,"julij"]
[null,"avgust"]
[null,"september"]
[null,"oktober"]
[null,"november"]
[null,"december"]
[null,"Povprečno število na mesec",{"$f":"AVERAGE(C18:C29)","v":{"$error":"#DIV/0!"}},{"$f":"AVERAGE(D18:D29)","v":{"$error":"#DIV/0!"}}]
[null,"Opomba:\n*Aktivna vključenost pomeni, da je uporabnik aktivno vključen v dejavnosti programa. Torej pri programih, ki uporabnikom nudijo bivanje, ne vpisujete 720 ur na mesec, ampak število ur aktivne vključenosti uporabnika v program na mesec."]
[]
[]
[4,"Prosimo, navedite število VSEH RAZLIČNIH uporabnikov glede na spol in starost. Prosimo zapišite oceno, če nimate točnih podatkov."]
[null,"Starostna skupina",null,"Število moških","Število žensk","Spol ni znan oz. ni definiran"]
[null,"MLADOLETNI","do vključno 15 let"]
[null,null,"nad 15 let do 18 let"]
[null,"POLNOLETNI","nad 18 let do 35 let"]
[null,null,"nad 35 let do 50 let"]
[null,null,"nad 50 let do 65 let"]
[null,null,"nad 65 let"]
[null,"ANONIMNI","starost in/ali spol nista znana oz. definirana"]
[null,"Skupaj različnih uporabnikov ",null,{"$f":"SUM(D36:D42)","v":0},{"$f":"SUM(E36:E42)","v":0},{"$f":"SUM(F36:F42)","v":0}]
[null,"Ujemanje s prvo preglednico: ","Ujemanje: ",{"$f":"IF((E4=(D43+E43+F43)),\"SEŠTEVEK SE UJEMA\",\"SEŠTEVEK SE NE UJEMA - PREVERITE\")","v":"SEŠTEVEK SE UJEMA"}]
[null,"Opomba:\nIzvajalci, ki uporabljate bazo EVAPRO in beležite drugačne starostne skupine, lahko ustvarite tabelo za izpis z navedenimi starostnimi skupinami - podrobno v »Navodilih za uporabo baze Evapro© - junij 2024«, poglavje »9.1.4 Po star. skupinah«, str. 92-93."]
[]
[]
[5,"Prosimo, navedite število uporabnikov glede na čas/obdobje njihove vključitve v program. Upoštevajte VSE RAZLIČNE uporabnike. Seštevek uporabnikov mora tako biti enak podatku različnih uporabnikov iz prve preglednice. Prosimo zapišite oceno, če nimate točnih podatkov."]
[null,"Število uporabnikov, ki so program obiskovali/bili vključeni…",null,null,"Število uporabnikov"]
[null,"vsak dan ali petkrat na teden"]
[null,"enkrat ali večkrat na teden, vendar ne vsak (delovni) dan"]
[null,"večkrat/nekajkrat na mesec"]
[null,"enkrat na mesec"]
[null,"nekajkrat na leto"]
[null,"enkrat na leto"]
[null,"uporabniki, za katere ni znano, kako pogosto so obiskovali/bili vključeni v program (anonimni)"]
[null,"Skupaj število različnih uporabnikov ",null,null,{"$f":"SUM(E50:E56)","v":0}]
[null,"Ujemanje s prvo preglednico: ","Ujemanje: ",{"$f":"IF((E4=(E57)),\"SEŠTEVEK SE UJEMA\",\"SEŠTEVEK SE NE UJEMA - PREVERITE\")","v":"SEŠTEVEK SE UJEMA"}]
[]
[]
[6,"Prosimo, opredelite ciljno skupino uporabnikov - značilnosti uporabnikov, ki jim je program namenjen:"]
[null,"po spolu"]
[null,"po starostnih skupinah"]
[null,"družinske razmere in socialno omrežje"]
[null,"glede na težavo(e), ki jo/jih imajo"]
[null,"druge pomembne značilnosti"]

{"sheet":"AKTIVNOSTI","index":14,"n_rows":21,"n_cols":5,"rows_kept":21,"cut":false,"hidden":true,"merged":[[0,0,0,9],[2,1,2,8],[20,1,20,4]]}
["DODATNE AKTIVNOSTI PROGRAMA - za obdobje od 1. 1. 2024 do 31. 12. 2024"]
[]
[1,"Če v okviru programa izvajate dodatne aktivnosti (npr. predavanja, e-svetovanje, skupina za starše ipd.), ki niso del programa, prosimo navedite število uporabnikov za vsako aktivnost posebej. V aktivnostih, kjer beležite število uporabnikov, izpolnite stolpec C in E. V aktivnostih, kjer pa beležite le število izvajanj, izpolnite le stolpec D. Če beležite opravljene storitve in NE števila uporabnikov (npr. telefonski klici), posebej poudarite ali gre za storitev ali uporabnika.\nOpomba: Uporabnikov iz teh dejavnosti ne štejte k številu programa na listu \"UPORABNIKI\"."]
[null,"Aktivnosti","Število različnih uporabnikov v letu","Število storitev/dogodkov v letu","Povprečno število ur vključenosti enega uporabnika na mesec/\npri telefonskih klicih navedite povprečni čas enega pogovora"]
[]
[]
[]
[]
[]
[]
[]
[]
[]
[]
[]
[]
[]
[]
[]
[]
[null,"po potrebi vstavite vrstice - ne briši vrstic"]

{"sheet":"KADRI","index":15,"n_rows":58,"n_cols":8,"rows_kept":58,"cut":false,"hidden":true,"merged":[[53,7,53,8],[54,7,54,8],[55,1,55,8],[3,2,3,3],[4,2,4,3],[5,2,5,3],[6,2,6,3],[7,2,7,3],[17,7,17,8],[18,7,18,8],[24,7,24,8],[25,7,25,8],[26,7,26,8],[27,7,27,8],[28,7,28,8],[31,7,31,8],[0,0,0,9],[11,1,11,8],[47,1,47,2],[45,1,45,8],[42,1,42,8],[12,7,12,8],[13,7,13,8],[14,7,14,8],[15,7,15,8],[16,7,16,8],[19,7,19,8],[20,7,20,8],[21,7,21,8],[22,7,22,8],[23,7,23,8],[41,7,41,8],[8,2,8,3],[2,1,2,8],[29,7,29,8],[30,7,30,8],[40,7,40,8],[32,7,32,8],[33,7,33,8],[34,7,34,8],[35,7,35,8],[36,7,36,8]]}
["KADRI - za obdobje od 1. 1. 2024 do 31. 12. 2024"]
[]
[1,"Prosimo, navedite obseg zaposlitev, ki jih imate sofinancirane po pogodbi z MDDSZ:"]
[null,"Vrsta kadra","Obseg zaposlitev, financiranih od MDDSZ \n(npr. 100 % zaposlitev vpišite kot 1; \n50 % zaposlitev vpišite kot 0,5 ipd.)",null,"Kontrola obsega\n(iz stolpca G)"]
[null,"strokovni vodja",null,null,{"$f":"(SUMIF($D$13:$D$42,\"strokovni vodja\",$G$13:$G$42)/2096)","v":0}]
[null,"strokovni delavec",null,null,{"$f":"(SUMIF($D$13:$D$42,\"strokovni delavec\",$G$13:$G$42)/2096)","v":0}]
[null,"višji laični delavec",null,null,{"$f":"(SUMIF($D$13:$D$42,\"višji laični delavec\",$G$13:$G$42)/2096)","v":0}]
[null,"nižji laični delavec",null,null,{"$f":"(SUMIF($D$13:$D$42,\"nižji laični delavec\",$G$13:$G$42)/2096)","v":0}]
[null,"ostali plačani izvajalci",null,null,{"$f":"(SUMIF($D$13:$D$42,\"ostali plačani\",$G$13:$G$42)/2096)","v":0}]
[]
[]
[2,"Prosimo, navedite plačan kader - zaposlene in ostale plačane izvajalce v programu, njihovo smer in stopnjo izobrazbe, delovno mesto, vrsto zaposlitve, število opravljenih ur v programu in vire financiranja zaposlitve. Če je zaposleni v programu sofinanciran iz drugih virov, npr. občine, navedite število ur sofinanciranja za vsak vir posebej. Če je zaposlena oseba na dveh delovnih mestih, npr. pol na strokovnem delavcu, pol na višjem laičnem v istem programu - ga vpišite 2x z ustreznimi podatki."]
[null,"Ime in priimek","Izobrazba\n(smer/ stopnja)","Delovno mesto\n(izberite ustrezen odgovor)","Vrsta zaposlitve\n(izberite ustrezen odgovor)","Skupaj število opravljenih ur, \nne glede na financerja","Število opravljenih ur, financiranih iz razpisa  MDDSZ","Število opravljenih ur \npo drugih financerjih\n(npr. OBČINA: 1044; FIHO: 500; ZRSZ: 544)"]
[]
[]
[]
[]
[]
[]
[]
[]
[]
[]
[]
[]
[]
[]
[]
[]
[]
[]
[]
[]
[]
[]
[]
[]
[]
[]
[]
[]
[]
[null,"po potrebi vstavite vrstice - ne brišite vrstic"]
[]
[]
[3,"Prosimo, navedite število vseh ur, ki so jih opravili prostovoljci v programu. Navedite prostovoljce glede na spol in število opravljenih ur ter opredelite vrsto prostovoljnega dela."]
[]
[null,"Skupaj opravljeno število ur prostovoljnega dela"]
[]
[null,"Prostovoljci po spolu","Število prostovoljcev","Število opravljenih ur","Število prostovoljcev","Vrsta dela glede na določila Zakona o prostovoljstvu*","Število prostovoljcev"]
[null,"Ženske",null,"0 do 24 ur",null,"organizacijsko delo"]
[null,"Moški",null,"25 do 100 ur",null,"strokovno delo - na področju socialnega varstva"]
[null,null,null,"101 do 500 ur",null,"strokovno delo - drugo"]
[null,null,null,"501 ur in več",null,"drugo delo",null,"Kontrola (vsa tri polja se morajo ujemati)"]
[null,"Skupaj število prostovoljcev",{"$f":"C51+C52","v":0},"Skupaj število prostovoljcev",{"$f":"SUM(E51:E54)","v":0},"Skupaj število prostovoljcev",{"$f":"SUM(G51:G54)","v":0},{"$f":"IF(AND(C55=E55,E55=G55),\"OK\",\"SEŠTEVEK NI OK-PREVERITE\")","v":"OK"}]
[null,"Opomba:\n* Zakon o prostovoljstvu (Uradni list RS, število 10/11, 16/11 – popr. in 82/15), 23.a člen, vrste prostovoljskega dela:\n(1) Vrste prostovoljskega dela iz druge alineje drugega odstavka 23. člena so: organizacijsko delo, ki je opravljanje prostovoljskega dela vodenja projektov in programov, njihova organizacija ali organizacija dela projekta ali programa in opravljanje mentorstva prostovoljcem; vsebinsko delo, ki je opravljanje prostovoljskega dela, za izvajanje katerega so potrebna posebna znanja in veščine ali pa gre za osnovno prostovoljsko delo posameznega programa ali projekta. Posebna znanja in veščine so znanja in veščine, ki jih prostovoljec pridobi v vzgojno izobraževalnem sistemu ali na usposabljanju prostovoljske organizacije; drugo delo, ki je opravljanje prostovoljskega dela kot pomožnega dela ali dela za podporo prostovoljskemu programu ali projektu ali dela za opravljanje katerega ni potrebno posebno usposabljanje."]
[]
[null,"Če prostovoljci prejemajo denarno nagrado, prosimo navedite višino nagrade (plačilo na uro) in skupni znesek, ki je bil porabljen v ta namen:"]

{"sheet":"FINANCE","index":16,"n_rows":53,"n_cols":9,"rows_kept":53,"cut":false,"hidden":true,"merged":[[49,1,49,2],[52,0,52,9],[40,1,40,2],[43,1,43,2],[44,1,44,2],[45,1,45,2],[46,1,46,2],[41,1,41,2],[42,1,42,2],[48,1,48,2],[47,1,47,5],[39,1,39,2],[37,1,37,2],[29,2,29,6],[38,1,38,2],[32,1,32,8],[33,1,33,2],[34,1,34,2],[33,4,33,5],[35,1,35,2],[36,1,36,2],[22,1,22,8],[18,1,18,2],[8,1,8,2],[10,1,10,2],[11,1,11,2],[12,1,12,2],[19,1,19,2],[20,1,20,2],[0,0,0,9],[2,0,2,9],[4,1,4,8],[7,1,7,8],[26,1,26,8],[8,5,8,6],[21,1,21,2],[23,1,23,2],[13,1,13,2],[14,1,14,2],[15,1,15,2],[16,1,16,2],[17,1,17,2],[9,1,9,2],[8,3,8,4],[8,7,8,8]]}
["FINANČNO POROČILO - za obdobje od 1. 1. 2024 do 31. 12. 2024"]
[]
["OPOZORILO! Listine (račune, izplačilne liste, itd.), iz katerih je razvidno, da so bila sredstva porabljena namensko za izvajanje programa, hranite za morebitni nadzor programa."]
[]
[1,"Prosimo, preverite skupni odstotek prihodkov, pridobljenih od drugih sofinancerjev programa (% od celotne vrednosti programa)."]
[null,{"$f":"SUM(G12:G22)","v":{"$error":"#DIV/0!"}}]
[]
[null,"Prosimo, navedite vire financiranja oz. vse sofinancerje programa, odobrena sredstva za izvajanje programa ter višino sredstev. "]
[null,"PRIHODKI PROGRAMA",null,"Vsa zaprošena sredstva",null,"Vsa prejeta sredstva",null,"Priložena dokazila v višini najmanj 20 %"]
[null,"Sofinancer programa",null,"Znesek v EUR","V odstotkih","Znesek v EUR","V odstotkih","Znesek v EUR","V odstotkih"]
[null,"MDDSZ (kot izhaja iz pogodbe)",null,null,{"$f":"D11/$D$24","v":{"$error":"#DIV/0!"}},null,{"$f":"F11/$F$24","v":{"$error":"#DIV/0!"}}]
[null,"Občine (seštejte znesek vseh občin skupaj)",null,null,{"$f":"D12/$D$24","v":{"$error":"#DIV/0!"}},null,{"$error":"#DIV/0!"},null,{"$f":"H12/$F$24","v":{"$error":"#DIV/0!"}}]
[null,"Donacije",null,null,{"$error":"#DIV/0!"},null,{"$error":"#DIV/0!"},null,{"$error":"#DIV/0!"}]
[null,"FIHO",null,null,{"$error":"#DIV/0!"},null,{"$error":"#DIV/0!"},null,{"$error":"#DIV/0!"}]
[null,"ZRSZ",null,null,{"$error":"#DIV/0!"},null,{"$error":"#DIV/0!"},null,{"$error":"#DIV/0!"}]
[null,"Drugi proračunski viri skupaj (navedite: _____)",null,null,{"$error":"#DIV/0!"},null,{"$error":"#DIV/0!"},null,{"$error":"#DIV/0!"}]
[null,"Uporabniki",null,null,{"$error":"#DIV/0!"},null,{"$error":"#DIV/0!"},null,{"$error":"#DIV/0!"}]
[null,"Članarine",null,null,{"$error":"#DIV/0!"},null,{"$error":"#DIV/0!"},null,{"$error":"#DIV/0!"}]
[null,"Lastna sredstva",null,null,{"$error":"#DIV/0!"},null,{"$error":"#DIV/0!"},null,{"$error":"#DIV/0!"}]
[null,"Ovrednoteno prostovoljsko delo",null,null,{"$error":"#DIV/0!"},null,{"$error":"#DIV/0!"},null,{"$error":"#DIV/0!"}]
[null,"Brezplačen najem prostorov",null,null,{"$error":"#DIV/0!"},null,{"$error":"#DIV/0!"},null,{"$error":"#DIV/0!"}]
[null,"Drugo (navedite: _____)",null,null,{"$error":"#DIV/0!"},null,{"$error":"#DIV/0!"},null,{"$error":"#DIV/0!"}]
[null,"po potrebi vstavite vrstice in prekopirajte formule za preračun - ne brišite vrstic"]
[null,"SKUPAJ",null,{"$f":"SUM(D11:D23)","v":0},{"$error":"#DIV/0!"},0,{"$error":"#DIV/0!"},0,{"$error":"#DIV/0!"}]
[]
[]
[2,"Ali ste del prejetih sredstev od MDDSZ vračali? Prosimo, označite odgovor in vpišite znesek vračila. Opomba: Tudi če ste znesek vračali, ga upoštevajte v tabeli 1 (tam vpišite toliko sredstev, kot je bilo navedeno na pogodbi)."]
[null,"izberite ustrezen odgovor"]
[null,"Znesek v EUR"]
[null,"Opomba "]
[]
[]
[3,"Prosimo, navedite stroške, krite iz sredstev MDDSZ, ki ste jih pridobili preko javnega razpisa za sofinanciranje programov socialnega varstva. Po potrebi dodajte vrstice, še posebej, če imate več različnih stroškov pri odhodkih iz sredstev MDDSZ."]
[null,"ODHODKI PROGRAMA",null,"Znesek v EUR","V odstotkih"]
[null,"1. Stroški dela redno zaposlenih \n(sem spadajo: plače zaposlenih, delodajalčeve dajatve za socialno varnost, regres za letni dopust, prevoz na delo, stroški prehrane, jubilejne nagrade)",null,null,null,{"$f":"D35/$D$50","v":{"$error":"#DIV/0!"}}]
[null,"2. Stroški zunanjih izvajalcev, vezanih neposredno na program ",null,{"$f":"SUM(D37:D38)","v":0},null,{"$f":"D36/$D$50","v":{"$error":"#DIV/0!"}}]
[null,"- delo na podlagi pogodb",null,null,{"$f":"D37/$D$50","v":{"$error":"#DIV/0!"}}]
[null,"- strošek študentskega dela",null,null,{"$f":"D38/$D$50","v":{"$error":"#DIV/0!"}}]
[null,"3. Povračilo stroškov v zvezi z delom na programu za prostovoljce na osnovi sklenjenih dogovorov",null,null,null,{"$f":"D39/$D$50","v":{"$error":"#DIV/0!"}}]
[null,"4. Stroški materiala ter storitev",null,{"$f":"SUM(D41:D47)","v":0},null,{"$f":"D40/$D$50","v":{"$error":"#DIV/0!"}}]
[null," - energija – elektrika",null,null,{"$f":"D41/$D$50","v":{"$error":"#DIV/0!"}}]
[null,"- ogrevanje prostorov",null,null,{"$error":"#DIV/0!"}]
[null,"- najemnina lokacija 1",null,null,{"$error":"#DIV/0!"}]
[null,"- najemnina lokacija 2",null,null,{"$error":"#DIV/0!"}]
[null,"-supervizija",null,null,{"$error":"#DIV/0!"}]
[null,"- telefonski stroški",null,null,{"$error":"#DIV/0!"}]
[null,"- stroški drugega materiala (natančno opredelite in navedite te stroške)",null,null,{"$error":"#DIV/0!"}]
[null,"po potrebi vstavite vrstice in prekopirajte formule za preračun - ne brišite vrstic"]
[null,"Preostanek sredstev",null,{"$f":"F11-D50","v":0}]
[null,"SKUPAJ VSI ODHODKI",null,{"$f":"D35+D36+D39+D40","v":0},{"$f":"SUM(E35:E47)","v":{"$error":"#DIV/0!"}},{"$f":"SUM(F35:F47)","v":{"$error":"#DIV/0!"}}]
[]
[]
["Obvezne priloge\nPriložite dokazila o 20-odstotnem sofinanciranju programa v letu 2024 (pogodbe oz. sklepi o sofinanciranju ipd.)."]

{"sheet":"DRUGO","index":17,"n_rows":21,"n_cols":6,"rows_kept":21,"cut":false,"hidden":true,"merged":[[21,1,21,8],[2,5,2,6],[3,1,3,4],[3,5,3,6],[5,1,5,4],[5,5,5,6],[6,1,6,4],[6,5,6,6],[16,1,16,8],[4,1,4,4],[4,5,4,6],[9,1,9,8],[11,1,11,2],[12,1,12,2],[13,1,13,2],[13,3,13,8],[0,0,0,9],[17,1,17,8],[20,1,20,8]]}
["DRUGO - za obdobje od 1. 1. 2024 do 31. 12. 2024"]
[]
[1,"Kakovost in svet uporabnikov/uporabniški sosvet. Prosimo izberite oz. vpišite ustrezen odgovor:",null,null,null,"izberite ustrezen odgovor/vpišite besedilo"]
[null,"Ali ima vaša organizacija uveden certificiran način upravljanja s kakovostjo? (izberite ustrezen odgovor)\n"]
[null,"          Če ste označili DA, kateri certifikat imate? (vpišite v desno polje)"]
[null,"Ali v vašem programu deluje svet uporabnikov oz. uporabniški sosvet? (izberite ustrezen odgovor)\n"]
[null,"          Če ste označili DA, prosimo vpišite še število srečanj v letu 2024: (vpišite v desno polje)"]
[]
[]
[2,"Prosimo, odgovorite na spodnja vprašanja, ki se nanašajo na POTREBE uporabnikov:"]
[null,null,null,"izberite ustrezen odgovor"]
[null,"Ali ste v letu 2024 zavrnili kakšno osebo, ki je izrazila željo po vključitvi v program ali pa je bila k vam napotena? "]
[null,"Če DA: Koliko oseb ste zavrnili?"]
[null,"Prosimo, vpišite razloge za zavrnitve."]
[]
[]
[3,"Prosimo, opozorite nas na posebnosti in izzive pri izvajanju vsebin programa, za katere menite, da jih je potrebno upoštevati pri ocenjevanju vašega poročila. Opišite morebitne druge značilnosti programa, ki jih druga vprašanja ne predvidevajo. "]
[]
[]
[]
[4,"Prosimo, navedite morebitne opombe, komentarje, predloge."]

{"sheet":"EVALVACIJA","index":18,"n_rows":38,"n_cols":8,"rows_kept":38,"cut":false,"hidden":true,"merged":[[8,1,8,3],[9,1,9,3],[10,1,10,3],[11,1,11,3],[12,1,12,3],[13,1,13,3],[14,1,14,3],[15,1,15,3],[16,1,16,3],[3,4,3,7],[4,4,4,7],[5,4,5,7],[6,4,6,7],[7,4,7,7],[8,4,8,7],[9,4,9,7],[10,4,10,7],[11,4,11,7],[12,4,12,7],[13,4,13,7],[14,4,14,7],[3,1,3,3],[4,1,4,3],[5,1,5,3],[6,1,6,3],[7,1,7,3],[28,1,28,4],[29,1,29,4],[30,1,30,4],[15,4,15,7],[16,4,16,7],[17,1,17,7],[0,0,0,8],[37,3,37,4],[36,1,36,7],[2,1,2,8],[21,1,21,4],[22,1,22,4],[19,1,19,8],[32,1,32,4],[33,1,33,4],[20,1,20,4],[25,1,25,4],[31,1,31,4],[23,1,23,4],[24,1,24,4],[26,1,26,4],[27,1,27,4]]}
["EVALVACIJSKI DEL - za obdobje od 1. 1. 2024 do 31. 12. 2024"]
[]
[1,"Prosimo, navedite in opišite cilje, ki jim sledite v vašem programu."]
[null,"Cilj",null,null,"Obrazložitev cilja"]
[]
[]
[]
[]
[]
[]
[]
[]
[]
[]
[]
[]
[]
[null,"po potrebi vstavite vrstice"]
[]
[2,"Prosimo, vpišite število izpolnjenih vprašalnikov po posameznem tipu vprašalnika."]
[null,"Tip vprašalnika\n(izberite iz spustnega seznama)",null,null,null,"Število izpolnjenih vprašalnikov"]
[]
[]
[]
[]
[]
[]
[]
[]
[null,"Drugo (prosimo, vpišite):"]
[null,"Drugo (prosimo, vpišite):"]
[null,"Drugo (prosimo, vpišite):"]
[null,"Drugo (prosimo, vpišite):"]
[null,"Drugo (prosimo, vpišite):"]
[]
[]
[3,"Prosimo, prilepite oz. prekopirajte izpis izvedenih postopkov iz aplikacije EVAPRO©, rubrika v sklopu \"poročila\" z imenom »postopki«."]
[null,"Šifra postopka","Ime postopka","Porabljen čas",null,"Število izvajanj","Število izvajalcev","Števillo uporabnikov"]

{"sheet":"KAPACITETE 1","index":19,"n_rows":20,"n_cols":8,"rows_kept":20,"cut":false,"hidden":true,"merged":[[0,0,0,8],[2,0,2,7]]}
["EVALVACIJSKI DEL - IZPIS KAPACITET - za obdobje od 1. 1. 2024 do 31. 12. 2024"]
[]
["Prosimo, prilepite oz. prekopirajte izpis o uporabnikih/nočitvah iz aplikacije EVAPRO©, rubrika v sklopu \"poročila\" z imenom z imenom »zasedenost ležišč«."]
[]
["Obdobje","Razpoložljiva ležišča","Skupaj","Polnoletni","Mladoletni","Neznan datum rojstva","Rezervirana ležišča","Zasedenost v %*"]
["Januar"]
["Februar"]
["Marec"]
["April"]
["Maj"]
["Junij"]
["Julij"]
["Avgust"]
["September"]
["Oktober"]
["November"]
["December"]
["Povprečje 1. 1. - 30. 6."]
["Povprečje 1. 7. - 31. 12."]
["Povprečje 1. 1. - 31. 12."]

{"sheet":"KAPACITETE 2","index":20,"n_rows":20,"n_cols":7,"rows_kept":20,"cut":false,"hidden":true,"merged":[[0,0,0,7],[2,0,2,6]]}
["EVALVACIJSKI DEL - IZPIS KAPACITET - za obdobje od 1. 1. 2024 do 31. 12. 2024"]
[]
["Prosimo, prilepite oz. prekopirajte izpis o uporabnikih/nočitvah iz aplikacije EVAPRO©, rubrika v sklopu \"poročila\" z imenom z imenom »zasedenost sob«."]
[]
["Obdobje","Razpoložljive sobe","Skupaj","Ženske","Otroci","Rezervirane sobe","Zasedenost v %*"]
["Januar"]
["Februar"]
["Marec"]
["April"]
["Maj"]
["Junij"]
["Julij"]
["Avgust"]
["September"]
["Oktober"]
["November"]
["December"]
["Povprečje 1. 1. - 30. 6."]
["Povprečje 1. 7. - 31. 12."]
["Povprečje 1. 1. - 31. 12."]

{"sheet":"podatki skrij","index":21,"n_rows":234,"n_cols":7,"rows_kept":234,"cut":false,"hidden":true,"merged":[]}
["področje","podpodročje1","podpodročje2","podpodročje3","podpodročje4","podpodročje5","podpodročje6"]
["NASILJE","MATERINSKI DOMOVI","VARNE HIŠE, ZATOČIŠČA IN KRIZNI CENTRI","SVETOVALNICE","PROGRAMI PREVENTIVE","PROGRAMI TELEFONSKEGA SVETOVANJA"]
["ZASVOJENI","PREPOVEDANE DROGE – VISOKI PRAG","PREPOVEDANE DROGE - NIZKI PRAG","PREPOVEDANE DROGE – PREVENTIVNI PROGRAMI","ALKOHOLIZEM","MOTNJE HRANJENJA","PREPREČEVANJE PREKOMERNE RABE IKT"]
["DUŠEVNO ZDRAVJE","STANOVANJSKE SKUPINE","DNEVNI CENTRI","INFORMACIJSKE PISARNE IN SVETOVALNICE","PROGRAMI TELEFONSKEGA SVETOVANJA","ZAGOVORNIŠTVO"]
["BREZDOMCI","NAMESTITVENI PROGRAMI","DNEVNI PROGRAMI","DELOŽACIJE"]
["OTROCI IN MLADOSTNIKI","DNEVNI CENTRI ZA OTROKE IN MLADOSTNIKE S PREVENTIVNIM DELOM IN SVETOVANJEM","PREVENTIVNI PROGRAMI","PROGRAMI TELEFONSKEGA SVETOVANJA"]
["STAREJŠI","MEDGENERACIJSKA SREDIŠČA","PROGRAMI ZA STAREJŠE","PROGRAMI ZA OSEBE Z DEMENCO IN NJIHOVE SVOJCE"]
["INVALIDI","PROGRAMI OSEBNE ASISTENCE IN MREŽE SPREMLJEVALCEV","PROGRAMI ZA SPODBUJANJE SOCIALNE VKLJUČENOSTI IN NEODVISNEGA ŽIVLJENJA INVALIDOV"]
["ROMI","PROGRAMI ZA ROME"]
["DRUGI PROGRAMI","DRUGI PROGRAMI"]
["PROGRAMI SPECIALISTIČNE PODPORE ŽRTVAM KAZNIVIH DEJANJ","PROGRAMI SPECIALISTIČNE PODPORE ŽRTVAM KAZNIVIH DEJANJ"]
[]
[]
["Dokumentacija o programu"]
["Dokumentacija za uporabnike"]
["Vprašalnik za uporabnike ob vstopu"]
["Vprašalnik za uporabnike ob evalvaciji /izstopu iz programa"]
["Vprašalnik za uporabnike po razgovoru oz. Vprašalnik o svetovalnem pogovoru"]
["Vprašalnik za oceno programa oz. Vprašalnik ocena programa za anonimne uporabnike"]
["Vprašalnik o oceni programa za svojce"]
[]
[]
["AJDOVŠČINA"]
["ANKARAN"]
["APAČE"]
["BELTINCI"]
["BENEDIKT"]
["BISTRICA OB SOTLI"]
["BLED"]
["BLOKE"]
["BOHINJ"]
["BOROVNICA"]
["BOVEC"]
["BRASLOVČE"]
["BRDA"]
["BREZOVICA"]
["BREŽICE"]
["CANKOVA"]
["CELJE"]
["CERKLJE NA GORENJSKEM"]
["CERKNICA"]
["CERKNO"]
["CERKVENJAK"]
["CIRKULANE"]
["ČRENŠOVCI"]
["ČRNA NA KOROŠKEM"]
["ČRNOMELJ"]
["DESTRNIK"]
["DIVAČA"]
["DOBJE"]
["DOBREPOLJE"]
["DOBRNA"]
["DOBROVA-POLHOV GRADEC"]
["DOBROVNIK"]
["DOL PRI LJUBLJANI"]
["DOLENJSKE TOPLICE"]
["DOMŽALE"]
["DORNAVA"]
["DRAVOGRAD"]
["DUPLEK"]
["GORENJA VAS-POLJANE"]
["GORIŠNICA"]
["GORJE"]
["GORNJA RADGONA"]
["GORNJI GRAD"]
["GORNJI PETROVCI"]
["GRAD"]
["GROSUPLJE"]
["HAJDINA"]
["HOČE SLIVNICA"]
["HODOŠ"]
["HORJUL"]
["HRASTNIK"]
["HRPELJE-KOZINA"]
["IDRIJA"]
["IG"]
["ILIRSKA BISTRICA"]
["IVANČNA GORICA"]
["IZOLA"]
["JESENICE"]
["JEZERSKO"]
["JURŠINCI"]
["KAMNIK"]
["KANAL OB SOČI"]
["KIDRIČEVO"]
["KOBARID"]
["KOBILJE"]
["KOČEVJE"]
["KOMEN"]
["KOMENDA"]
["KOPER"]
["KOSTANJEVICA NA KRKI"]
["KOSTEL"]
["KOZJE"]
["KRANJ"]
["KRANJSKA GORA"]
["KRIŽEVCI"]
["KRŠKO"]
["KUNGOTA"]
["KUZMA"]
["LAŠKO"]
["LENART"]
["LENDAVA"]
["LITIJA"]
["LJUBLJANA"]
["LJUBNO"]
["LJUTOMER"]
["LOGATEC"]
["LOG-DRAGOMER"]
["LOŠKA DOLINA"]
["LOŠKI POTOK"]
["LOVRENC NA POHORJU"]
["LUČE"]
["LUKOVICA"]
["MAJŠPERK"]
["MAKOLE"]
["MARIBOR"]
["MARKOVCI"]
["MEDVODE"]
["MENGEŠ"]
["METLIKA"]
["MEŽICA"]
["MIKLAVŽ NA DRAVSKEM POLJU"]
["MIREN-KOSTANJEVICA"]
["MIRNA"]
["MIRNA PEČ"]
["MISLINJA"]
["MOKRONOG - TREBELNO"]
["MORAVČE"]
["MORAVSKE TOPLICE"]
["MOZIRJE"]
["MURSKA SOBOTA"]
["MUTA"]
["NAKLO"]
["NAZARJE"]
["NOVA GORICA"]
["NOVO MESTO"]
["ODRANCI"]
["OPLOTNICA"]
["ORMOŽ"]
["OSILNICA"]
["PESNICA"]
["PIRAN"]
["PIVKA"]
["PODČETRTEK"]
["PODLEHNIK"]
["PODVELKA"]
["POLJČANE"]
["POLZELA"]
["POSTOJNA"]
["PREBOLD"]
["PREDDVOR"]
["PREVALJE"]
["PTUJ"]
["PUCONCI"]
["RAČE-FRAM"]
["RADEČE"]
["RADENCI"]
["RADLJE OB DRAVI"]
["RADOVLJICA"]
["RAVNE NA KOROŠKEM"]
["RAZKRIŽJE"]
["REČICA OB SAVINJI"]
["RENČE-VOGRSKO"]
["RIBNICA"]
["RIBNICA NA POHORJU"]
["ROGAŠKA SLATINA"]
["ROGAŠOVCI"]
["ROGATEC"]
["RUŠE"]
["SELNICA OB DRAVI"]
["SEMIČ"]
["SEVNICA"]
["SEŽANA"]
["SLOVENJ GRADEC"]
["SLOVENSKA BISTRICA"]
["SLOVENSKE KONJICE"]
["SODRAŽICA"]
["SOLČAVA"]
["SREDIŠČE OB DRAVI"]
["STARŠE"]
["STRAŽA"]
["SVETA ANA"]
["SVETA TROJICA V SLOVENSKIH GORICAH"]
["SVETI ANDRAŽ V SLOVENSKIH GORICAH"]
["SVETI JURIJ OB ŠČAVNICI"]
["SVETI JURIJ V SLOVENSKIH GORICAH"]
["SVETI TOMAŽ"]
["ŠALOVCI"]
["ŠEMPETER-VRTOJBA"]
["ŠENČUR"]
["ŠENTILJ"]
["ŠENTJERNEJ"]
["ŠENTJUR"]
["ŠENTRUPERT"]
["ŠKOCJAN"]
["ŠKOFJA LOKA"]
["ŠKOFLJICA"]
["ŠMARJE PRI JELŠAH"]
["ŠMARJEŠKE TOPLICE"]
["ŠMARTNO OB PAKI"]
["ŠMARTNO PRI LITIJI"]
["ŠOŠTANJ"]
["ŠTORE"]
["TABOR"]
["TIŠINA"]
["TOLMIN"]
["TRBOVLJE"]
["TREBNJE"]
["TRNOVSKA VAS"]
["TRZIN"]
["TRŽIČ"]
["TURNIŠČE"]
["VELENJE"]
["VELIKA POLANA"]
["VELIKE LAŠČE"]
["VERŽEJ"]
["VIDEM"]
["VIPAVA"]
["VITANJE"]
["VODICE"]
["VOJNIK"]
["VRANSKO"]
["VRHNIKA"]
["VUZENICA"]
["ZAGORJE OB SAVI"]
["ZAVRČ"]
["ZREČE"]
["ŽALEC"]
["ŽELEZNIKI"]
["ŽETALE"]
["ŽIRI"]
["ŽIROVNICA"]
["ŽUŽEMBERK"]

{"sheet":"matrika_3","index":22,"n_rows":30,"n_cols":14,"rows_kept":30,"cut":false,"hidden":true,"merged":[[0,2,0,3],[0,5,0,9],[1,6,29,6],[1,7,29,7],[1,8,29,8],[1,9,29,9],[1,10,29,10],[23,0,25,0],[1,2,29,2],[1,3,29,3],[1,5,29,5],[1,0,5,0],[12,0,16,0],[6,0,11,0],[17,0,19,0],[20,0,22,0]]}
["področje","podpodročje","vsem se odprejo zavihki",null,"novo - UP_VSEBINE se odprejo IF korak 1","vsem se odprejo zavihki",null,null,null,null,"IF korak 3 = DA","IF korak \"3 = DA\" + IF korak \"2\" = izbrano podpodročje"]
["NASILJE","MATERINSKI DOMOVI","navodila","splošno","UP_VSEBINE 1","uporabniki","aktivnosti","kadri","finance","drugo","evalvacija","kapacitete 2",null,"list DRUGO je zdaj samo eden in se prikaže vsem, ne glede na filter"]
[null,"VARNE HIŠE, ZATOČIŠČA IN KRIZNI CENTRI",null,null,"UP_VSEBINE 1",null,null,null,null,null,null,"kapacitete 2",null,"novost: listi UP_VSEBINE 1-10 se odprejo glede na IF 1, določeno v stolpcu E"]
[null,"SVETOVALNICE",null,null,"UP_VSEBINE 1",null,null,null,null,null,null,null,null,"list \"navodila evalvacije\" sem dala ven"]
[null,"PROGRAMI PREVENTIVE",null,null,"UP_VSEBINE 1",null,null,null,null,null,null,null,null,"list \"podprogrami\" se je preimenoval v \"aktivnosti\""]
[null,"PROGRAMI TELEFONSKEGA SVETOVANJA",null,null,"UP_VSEBINE 1"]
["ZASVOJENI","PREPOVEDANE DROGE – VISOKI PRAG",null,null,"UP_VSEBINE 2",null,null,null,null,null,null,"kapacitete 1"]
[null,"PREPOVEDANE DROGE - NIZKI PRAG",null,null,"UP_VSEBINE 2"]
[null,"PREPOVEDANE DROGE – PREVENTIVNI PROGRAMI",null,null,"UP_VSEBINE 2"]
[null,"ALKOHOLIZEM",null,null,"UP_VSEBINE 2",null,null,null,null,null,null,"kapacitete 1"]
[null,"MOTNJE HRANJENJA",null,null,"UP_VSEBINE 2"]
[null,"PREPREČEVANJE PREKOMERNE RABE IKT",null,null,"UP_VSEBINE 2"]
["DUŠEVNO_ZDRAVJE","STANOVANJSKE SKUPINE",null,null,"UP_VSEBINE 3",null,null,null,null,null,null,"kapacitete 1"]
[null,"DNEVNI CENTRI",null,null,"UP_VSEBINE 3"]
[null,"INFORMACIJSKE PISARNE IN SVETOVALNICE",null,null,"UP_VSEBINE 3"]
[null,"PROGRAMI TELEFONSKEGA SVETOVANJA",null,null,"UP_VSEBINE 3"]
[null,"ZAGOVORNIŠTVO",null,null,"UP_VSEBINE 3"]
["BREZDOMCI","NAMESTITVENI PROGRAMI",null,null,"UP_VSEBINE 4",null,null,null,null,null,null,"kapacitete 1"]
[null,"DNEVNI PROGRAMI",null,null,"UP_VSEBINE 4"]
[null,"DELOŽACIJE",null,null,"UP_VSEBINE 4"]
["OTROCI_MLADOSTNIKI","DNEVNI CENTRI ZA OTROKE IN MLADOSTNIKE S PREVENTIVNIM DELOM IN SVETOVANJEM",null,null,"UP_VSEBINE 5"]
[null,"PREVENTIVNI PROGRAMI",null,null,"UP_VSEBINE 5"]
[null,"PROGRAMI TELEFONSKEGA SVETOVANJA",null,null,"UP_VSEBINE 5"]
["STAREJŠI","MEDGENERACIJSKA SREDIŠČA",null,null,"UP_VSEBINE 6"]
[null,"PROGRAMI ZA STAREJŠE",null,null,"UP_VSEBINE 6"]
[null,"PROGRAMI ZA OSEBE Z DEMENCO IN NJIHOVE SVOJCE",null,null,"UP_VSEBINE 6"]
["INVALIDI","PROGRAMI ZA SPODBUJANJE SOCIALNE VKLJUČENOSTI IN NEODVISNEGA ŽIVLJENJA INVALIDOV",null,null,"UP_VSEBINE 7",null,null,null,null,null,null,"kapacitete 1"]
["ROMI","PROGRAMI ZA ROME",null,null,"UP_VSEBINE 8"]
["DRUGI_PROGRAMI","DRUGI PROGRAMI",null,null,"UP_VSEBINE 10"]
["PROGRAMI SPECIALISTIČNE PODPORE ŽRTVAM KAZNIVIH DEJANJ","PROGRAMI SPECIALISTIČNE PODPORE ŽRTVAM KAZNIVIH DEJANJ",null,null,"UP_VSEBINE 9"]